fUSD/lending_fUSD_20250405
["ID","MTS","AMOUNT","RATE_DAILY","PERIOD"]
[357209545,1743895843516,-500.0,0.00030136,2]
[357209546,1743895843525,-504.85776083,0.00030136,2]
[357209547,1743895843535,-567.53311532,0.00030136,2]
[357209548,1743895843545,-586.65761918,0.00030136,2]
[357209549,1743895843555,-563.59972521,0.00030136,2]
[357209550,1743895843564,-500.95599673,0.00030136,2]
[357209551,1743895843573,-540.00046033,0.00030136,2]
[357209552,1743895843582,-502.80582111,0.00030136,2]
[357209553,1743895843591,-500.0,0.00030136,2]
[357209554,1743895843600,-502.04955842,0.00030136,2]
[357209555,1743895843610,-500.0,0.00030136,2]
[357209556,1743895843619,-533.0288932,0.00030136,2]
[357209557,1743895843630,-507.75610472,0.00030136,2]
[357209558,1743895843639,-500.0,0.00030136,2]
[357209559,1743895843648,-500.0,0.00030136,2]
[357209560,1743895843658,-500.0,0.00030136,2]
[357209561,1743895843667,-500.0,0.00030136,2]
[357209562,1743895843678,-512.55635912,0.00030136,2]
[357209563,1743895843687,-500.0,0.00030136,2]
[357209564,1743895843695,-500.0,0.00030136,2]
[357209565,1743895843704,-548.1589485,0.00030136,2]
[357209566,1743895843716,-521.86833224,0.00030136,2]
[357209567,1743895843728,-581.96342767,0.00030136,2]
[357209568,1743895843737,-500.0,0.00030136,2]
[357209569,1743895843747,-500.0,0.00030136,2]
[357209570,1743895843755,-234.83323864,0.00030136,2]
[357209571,1743895843764,-599.85567057,0.00030136,2]
[357209572,1743895843774,-500.0,0.00030136,2]
[357209573,1743895843784,-502.78583314,0.00030136,2]
[357209574,1743895843793,-500.0,0.00030136,2]
[357209575,1743895843803,-500.0,0.00030136,2]
[357209576,1743895843812,-500.0,0.00030136,2]
[357209577,1743895843821,-501.1530157,0.00030136,2]
[357209578,1743895843831,-500.0,0.00030136,2]
[357209579,1743895843840,-509.31081528,0.00030136,2]
[357209580,1743895843852,-547.78515397,0.00030136,2]
[357209581,1743895843864,-585.48130367,0.00030136,2]
[357209582,1743895843878,-500.0,0.00030136,2]
[357209583,1743895843890,-500.0,0.00030136,2]
[357209584,1743895843902,-500.0,0.00030136,2]
[357209585,1743895843912,-516.19949884,0.00030136,2]
[357209586,1743895843923,-500.0,0.00030136,2]
[357209587,1743895843934,-550.62989531,0.00030136,2]
[357209588,1743895843945,-523.24389719,0.00030136,2]
[357209589,1743895843956,-500.0,0.00030136,2]
[357209590,1743895843967,-500.0,0.00030136,2]
[357209591,1743895843979,-515.62264226,0.00030136,2]
[357209592,1743895843990,-517.51374422,0.00030136,2]
[357209593,1743895844001,-500.0,0.00030136,2]
[357209594,1743895844013,-528.51735298,0.00030136,2]
[357209595,1743895844025,-513.34422479,0.00030136,2]
[357209596,1743895844037,-500.0,0.00030136,2]
[357209597,1743895844048,-538.0436804,0.00030136,2]
[357209598,1743895844059,-500.0,0.00030136,2]
[357209599,1743895844069,-500.0,0.00030136,2]
[357209600,1743895844079,-518.40917943,0.00030136,2]
[357209601,1743895844089,-500.0,0.00030136,2]
[357209602,1743895844101,-500.0,0.00030136,2]
[357209603,1743895844112,-509.50283218,0.00030136,2]
[357209604,1743895844123,-500.0,0.00030136,2]
[357209605,1743895844134,-512.31855339,0.00030136,2]
[357209606,1743895844146,-500.0,0.00030136,2]
[357209607,1743895844157,-500.0,0.00030136,2]
[357209608,1743895844168,-530.6628282,0.00030136,2]
[357209609,1743895844180,-500.0,0.00030136,2]
[357209610,1743895844191,-500.0,0.00030136,2]
[357209611,1743895844202,-500.0,0.00030136,2]
[357209612,1743895844214,-541.92229321,0.00030136,2]
[357209613,1743895844225,-500.0,0.00030136,2]
[357209614,1743895844236,-500.0,0.00030136,2]
[357209615,1743895844248,-500.0,0.00030136,2]
[357209616,1743895844260,-529.14735315,0.00030136,2]
[357209617,1743895844272,-500.0,0.00030136,2]
[357209618,1743895844283,-500.0,0.00030136,2]
[357209619,1743895844294,-500.0,0.00030136,2]
[357209620,1743895844306,-524.7388339,0.00030136,2]
[357209621,1743895844317,-500.0,0.00030136,2]
[357209622,1743895844328,-500.0,0.00030136,2]
[357209623,1743895844339,-500.0,0.00030136,2]
[357209624,1743895844351,-500.0,0.00030136,2]
[357209625,1743895844363,-500.000001,0.00030136,2]
[357209626,1743895844375,-500.0,0.00030136,2]
[357209627,1743895844385,-500.0,0.00030136,2]
[357209628,1743895844396,-500.0,0.00030136,2]
[357209629,1743895844407,-500.0,0.00030136,2]
[357209630,1743895844418,-500.0,0.00030136,2]
[357209631,1743895844428,-500.0,0.00030136,2]
[357209632,1743895844438,-500.0,0.00030136,2]
[357209633,1743895844447,-500.0,0.00030136,2]
[357209634,1743895844458,-500.0,0.00030136,2]
[357209635,1743895844472,-500.0,0.00030136,2]
[357209636,1743895844483,-474.08121199,0.00030136,2]
[357209637,1743895844496,-500.0,0.00030136,2]
[357209638,1743895844509,-500.0,0.00030136,2]
[357209639,1743895844519,-514.00498467,0.00030136,2]
[357209640,1743895844529,-637.97156898,0.00030136,2]
[357209641,1743895844539,-500.0,0.00030136,2]
[357209642,1743895844549,-500.0,0.00030136,2]
[357209643,1743895844559,-500.0,0.00030136,2]
[357209644,1743895844569,-500.0,0.00030136,2]
[357209645,1743895844581,-508.00522879,0.00030136,2]
[357209646,1743895844593,-500.0,0.00030136,2]
[357209647,1743895844604,-524.41066558,0.00030136,2]
[357209648,1743895844615,-532.87314997,0.00030136,2]
[357209649,1743895844625,-1247.58,0.00030136,2]
[357209650,1743895844636,-500.0,0.00030136,2]
[357209651,1743895844646,-500.0,0.00030136,2]
[357209652,1743895844655,-500.0,0.00030136,2]
[357209653,1743895844666,-500.0,0.00030136,2]
[357209654,1743895844676,-500.0,0.00030136,2]
[357209655,1743895844687,-500.0,0.00030136,2]
[357209656,1743895844697,-500.0,0.00030136,2]
[357209657,1743895844708,-500.0,0.00030136,2]
[357209658,1743895844719,-500.0,0.00030136,2]
[357209659,1743895844729,-500.0,0.00030136,2]
[357209660,1743895844740,-504.09741878,0.00030136,2]
[357209661,1743895844750,-500.0,0.00030136,2]
[357209662,1743895844761,-500.0,0.00030136,2]
[357209663,1743895844771,-545.25900712,0.00030136,2]
[357209664,1743895844782,-199.18727,0.00030136,2]
[357209665,1743895844792,-632.64546975,0.00030136,2]
[357209666,1743895844802,-553.55508174,0.00030136,2]
[357209667,1743895844813,-234.89760435,0.00030136,2]
[357209668,1743895844823,-500.0,0.00030136,2]
[357209669,1743895844834,-500.0,0.00030136,2]
[357209670,1743895844845,-539.21243382,0.00030136,2]
[357209671,1743895844855,-372.6700148,0.00030136,2]
[357209672,1743895844865,-304.04106276,0.00030136,2]
[357209673,1743895844876,-630.22839388,0.00030136,2]
[357209674,1743895844886,-500.0,0.00030136,2]
[357209675,1743895844896,-500.0,0.00030136,2]
[357209676,1743895844907,-533.75570278,0.00030136,2]
[357209677,1743895844919,-599.90935513,0.00030136,2]
[357209678,1743895844929,-500.0,0.00030136,2]
[357209679,1743895844940,-581.99597756,0.00030136,2]
[357209680,1743895844950,-500.0,0.00030136,2]
[357209681,1743895844960,-500.0,0.00030136,2]
[357209682,1743895844970,-580.13745359,0.00030136,2]
[357209683,1743895844981,-500.0,0.00030136,2]
[357209684,1743895844991,-500.0,0.00030136,2]
[357209685,1743895845002,-500.0,0.00030136,2]
[357209686,1743895845013,-500.0,0.00030136,2]
[357209687,1743895845023,-500.0,0.00030136,2]
[357209688,1743895845033,-500.0,0.00030136,2]
[357209689,1743895845043,-500.0,0.00030136,2]
[357209690,1743895845053,-500.0,0.00030136,2]
[357209691,1743895845063,-500.0,0.00030136,2]
[357209692,1743895845074,-500.0,0.00030136,2]
[357209693,1743895845084,-500.0,0.00030136,2]
[357209694,1743895845095,-500.0,0.00030136,2]
[357209695,1743895845105,-500.0,0.00030136,2]
[357209696,1743895845116,-539.72939969,0.00030136,2]
[357209697,1743895845127,-500.0,0.00030136,2]
[357209698,1743895845137,-500.0,0.00030136,2]
[357209699,1743895845147,-787.68,0.00030136,2]
[357209700,1743895845158,-500.0,0.00030136,2]
[357209701,1743895845168,-500.0,0.00030136,2]
[357209702,1743895845178,-455.66777659,0.00030136,2]
[357209703,1743895845188,-500.0,0.00030136,2]
[357209704,1743895845198,-505.37195443,0.00030136,2]
[357209705,1743895845209,-500.0,0.00030136,2]
[357209706,1743895845219,-500.0,0.00030136,2]
[357209707,1743895845230,-500.0,0.00030136,2]
[357209708,1743895845240,-500.0,0.00030136,2]
[357209709,1743895845251,-500.0,0.00030136,2]
[357209710,1743895845261,-805.65,0.00030136,2]
[357209711,1743895845272,-500.0,0.00030136,2]
[357209712,1743895845282,-500.0,0.00030136,2]
[357209713,1743895845292,-500.0,0.00030136,2]
[357209714,1743895845303,-500.0,0.00030136,2]
[357209715,1743895845313,-500.0,0.00030136,2]
[357209716,1743895845324,-500.0,0.00030136,2]
[357209717,1743895845334,-500.0,0.00030136,2]
[357209718,1743895845344,-500.0,0.00030136,2]
[357209719,1743895845356,-500.0,0.00030136,2]
[357209720,1743895845366,-500.0,0.00030136,2]
[357209721,1743895845377,-505.18298115,0.00030136,2]
[357209722,1743895845388,-500.99667471,0.00030136,2]
[357209723,1743895845398,-511.40677429,0.00030136,2]
[357209724,1743895845408,-517.45562244,0.00030136,2]
[357209725,1743895845418,-500.0,0.00030136,2]
[357209726,1743895845429,-619.63518357,0.00030136,2]
[357209727,1743895845439,-500.0,0.00030136,2]
[357209728,1743895845450,-509.13340703,0.00030136,2]
[357209729,1743895845464,-605.16477139,0.00030136,2]
[357209730,1743895845474,-500.0,0.00030136,2]
[357209731,1743895845485,-500.0,0.00030136,2]
[357209732,1743895845495,-508.77617516,0.00030136,2]
[357209733,1743895845673,-500.0,0.00030136,2]
[357209734,1743895845688,-500.0,0.00030136,2]
[357209735,1743895845698,-500.0,0.00030136,2]
[357209736,1743895845707,-500.0,0.00030136,2]
[357209737,1743895845717,-511.11320989,0.00030136,2]
[357209738,1743895845726,-500.0,0.00030136,2]
[357209739,1743895845734,-500.0,0.00030136,2]
[357209740,1743895845743,-532.85084045,0.00030136,2]
[357209741,1743895845753,-500.0,0.00030136,2]
[357209742,1743895845762,-500.0,0.00030136,2]
[357209743,1743895845771,-500.0,0.00030136,2]
[357209744,1743895845780,-500.0,0.00030136,2]
[357209745,1743895845789,-500.0,0.00030136,2]
[357209746,1743895845797,-500.0,0.00030136,2]
[357209747,1743895845806,-500.0,0.00030136,2]
[357209748,1743895845815,-500.0,0.00030136,2]
[357209749,1743895845824,-610.0,0.00030137,2]
[357209750,1743895845834,-500.0,0.00030256,5]
[357209751,1743895845843,-482.26619861,0.00030256,5]
[357209752,1743895845852,-500.0,0.00030256,2]
[357209753,1743895845861,-500.0,0.00030285,2]
[357209754,1743895845871,-500.0,0.00030285,5]
[357209755,1743895845880,-500.0,0.00030285,5]
[357209756,1743895845890,-7586.079,0.000303,2]
[357209757,1743895845899,-417.5,0.00030341,2]
[357209758,1743895845908,-500.0,0.00030408,2]
[357209759,1743895845917,-500.0,0.00030408,2]
[357209760,1743895845926,-500.0,0.00030409,2]
[357209761,1743895845935,-500.0,0.00030409,2]
[357209762,1743895845944,-500.0,0.00030409,2]
[357209763,1743895845954,-518.92656086,0.00030409,2]
[357209764,1743895845963,-500.0,0.00030409,2]
[357209765,1743895845972,-506.23781611,0.00030409,2]
[357209766,1743895845982,-544.63359581,0.00030409,2]
[357209767,1743895845991,-540.06612147,0.00030409,2]
[357209768,1743895846000,-513.85895329,0.00030409,2]
[357209769,1743895846009,-517.07677421,0.00030409,2]
[357209770,1743895846019,-513.92840069,0.00030409,2]
[357209771,1743895846028,-377.88263545,0.00030409,2]
[357209772,1743895846037,-501.80137291,0.00030409,2]
[357209773,1743895846047,-510.01993929,0.00030409,2]
[357209774,1743895846056,-516.55584019,0.00030409,2]
[357209775,1743895846065,-528.34457471,0.00030409,2]
[357209776,1743895846075,-520.89898251,0.00030409,2]
[357209777,1743895846084,-559.02268331,0.00030409,2]
[357209778,1743895846093,-542.54846224,0.00030409,2]
[357209779,1743895846103,-505.76001783,0.00030409,2]
[357209780,1743895846112,-508.62367757,0.00030409,2]
[357209781,1743895846121,-540.54561273,0.00030409,2]
[357209782,1743895846130,-527.07461331,0.00030409,2]
[357209783,1743895846140,-514.57602688,0.00030409,2]
[357209784,1743895846149,-539.6816392,0.00030409,2]
[357209785,1743895846158,-508.575437,0.00030409,2]
[357209786,1743895846168,-504.494281,0.00030409,2]
[357209787,1743895846178,-512.40046317,0.00030409,2]
[357209788,1743895846187,-505.03284088,0.00030409,2]
[357209789,1743895846196,-500.67855421,0.00030409,2]
[357209790,1743895846206,-509.17841323,0.00030409,2]
[357209791,1743895846218,-500.0,0.00030409,2]
[357209792,1743895846227,-518.8387677,0.00030409,2]
[357209793,1743895846237,-500.0,0.00030409,2]
[357209794,1743895846246,-523.60423056,0.00030409,2]
[357209795,1743895846255,-503.41124588,0.00030409,2]
[357209796,1743895846266,-505.30049898,0.00030409,2]
[357209797,1743895846276,-504.96369823,0.00030409,2]
[357209798,1743895846286,-514.32793704,0.00030409,2]
[357209799,1743895846296,-500.0,0.00030409,2]
[357209800,1743895846305,-536.92936381,0.00030409,2]
[357209801,1743895846314,-200.0,0.00030409,2]
[357209802,1743895846325,-505.05791151,0.00030409,2]
[357209803,1743895846334,-500.0,0.00030409,2]
[357209804,1743895846343,-519.69574521,0.00030409,2]
[357209805,1743895846352,-513.54661152,0.00030409,2]
[357209806,1743895846361,-513.02589585,0.00030409,2]
[357209808,1743895846370,-474.52215222,0.00030409,2]
[357209809,1743895846379,-523.87806112,0.00030409,2]
[357209811,1743895846388,-520.1683368,0.00030409,2]
[357209812,1743895846397,-522.58493637,0.00030409,2]
[357209814,1743895846406,-527.54950411,0.00030409,2]
[357209816,1743895846415,-505.51659077,0.00030409,2]
[357209817,1743895846424,-507.39865486,0.00030409,2]
[357209818,1743895846433,-347.1818745,0.00030409,2]
[357209819,1743895846442,-500.0,0.00030409,2]
[357209820,1743895846451,-248.69231634,0.00030409,2]
[357209821,1743895846462,-518.25149328,0.00030409,2]
[357209822,1743895846472,-509.89907188,0.00030409,2]
[357209823,1743895846481,-500.0,0.00030409,2]
[357209824,1743895846490,-500.0,0.00030409,2]
[357209825,1743895846500,-528.15791886,0.00030409,2]
[357209826,1743895846509,-500.0,0.00030409,2]
[357209827,1743895846518,-500.0,0.00030409,2]
[357209828,1743895846527,-500.0,0.00030409,2]
[357209829,1743895846536,-500.0,0.00030409,2]
[357209830,1743895846546,-500.0,0.00030409,2]
[357209831,1743895846555,-500.0,0.00030409,2]
[357209832,1743895846566,-500.0,0.00030409,2]
[357209833,1743895846575,-512.76819733,0.00030409,2]
[357209834,1743895846584,-500.0,0.00030409,2]
[357209835,1743895846593,-500.0,0.00030409,2]
[357209836,1743895846602,-500.0,0.00030409,2]
[357209837,1743895846611,-510.4517231,0.00030409,2]
[357209838,1743895846620,-536.57893565,0.00030409,2]
[357209839,1743895846629,-500.0,0.00030409,2]
[357209840,1743895846638,-500.0,0.00030409,2]
[357209841,1743895846647,-500.0,0.00030409,2]
[357209842,1743895846656,-500.0,0.00030409,2]
[357209843,1743895846666,-500.0,0.00030409,2]
[357209844,1743895846675,-500.0,0.00030409,2]
[357209845,1743895846684,-500.0,0.00030409,2]
[357209846,1743895846694,-500.0,0.00030409,2]
[357209847,1743895846703,-500.0,0.00030409,2]
[357209848,1743895846712,-500.0,0.00030409,2]
[357209849,1743895846721,-500.0,0.00030409,2]
[357209850,1743895846730,-506.6707021,0.00030409,2]
[357209851,1743895846739,-500.0,0.00030409,2]
[357209852,1743895846749,-500.0,0.00030409,2]
[357209853,1743895846758,-501.30516266,0.00030409,2]
[357209854,1743895846768,-500.45104923,0.00030409,2]
[357209855,1743895846777,-500.0,0.00030409,2]
[357209856,1743895846786,-514.85034388,0.00030409,2]
[357209857,1743895846796,-500.0,0.00030409,2]
[357209858,1743895846804,-500.0,0.00030409,2]
[357209859,1743895846813,-500.0,0.00030409,2]
[357209860,1743895846822,-500.0,0.00030409,2]
[357209861,1743895846831,-538.83709021,0.00030409,2]
[357209862,1743895846841,-500.0,0.00030409,2]
[357209863,1743895846849,-500.0,0.00030409,2]
[357209864,1743895846859,-500.0,0.00030409,2]
[357209865,1743895846868,-500.0,0.00030409,2]
[357209866,1743895846878,-500.0,0.00030409,2]
[357209867,1743895846887,-500.0,0.00030409,2]
[357209868,1743895846896,-501.73088653,0.00030409,2]
[357209869,1743895846906,-500.0,0.00030409,2]
[357209870,1743895846915,-500.0,0.00030409,2]
[357209871,1743895846924,-500.0,0.00030409,2]
[357209872,1743895846933,-500.0,0.00030409,2]
[357209873,1743895846942,-500.0,0.00030409,2]
[357209874,1743895846951,-500.0,0.00030409,2]
[357209875,1743895846961,-500.0,0.00030409,2]
[357209876,1743895846970,-504.12228323,0.00030409,2]
[357209877,1743895846979,-500.0,0.00030409,2]
[357209878,1743895846988,-500.0,0.00030409,2]
[357209879,1743895846997,-500.0,0.00030409,2]
[357209880,1743895847006,-500.0,0.00030409,2]
[357209881,1743895847016,-500.0,0.00030409,2]
[357209882,1743895847026,-500.0,0.00030409,2]
[357209883,1743895847035,-509.52156393,0.00030409,2]
[357209884,1743895847044,-500.0,0.00030409,2]
[357209885,1743895847053,-500.0,0.00030409,2]
[357209886,1743895847062,-500.0,0.00030409,2]
[357209887,1743895847072,-587.70207568,0.00030409,2]
[357209888,1743895847082,-500.0,0.00030409,2]
[357209889,1743895847092,-500.0,0.00030409,2]
[357209890,1743895847103,-241.45718178,0.00030409,2]
[357209891,1743895847112,-500.0,0.00030409,2]
[357209892,1743895847121,-500.0,0.00030409,2]
[357209893,1743895847131,-500.0,0.00030409,2]
[357209894,1743895847140,-218.38751109,0.00030409,2]
[357209895,1743895847150,-500.0,0.00030409,2]
[357209896,1743895847159,-500.0,0.00030409,2]
[357209897,1743895847169,-500.0,0.00030409,2]
[357209898,1743895847178,-500.0,0.00030409,2]
[357209899,1743895847187,-500.0,0.00030409,2]
[357209900,1743895847197,-500.0,0.00030409,2]
[357209901,1743895847206,-500.0,0.00030409,2]
[357209902,1743895847215,-500.0,0.00030409,2]
[357209903,1743895847224,-500.0,0.00030409,2]
[357209904,1743895847233,-1500.0,0.00030409,2]
[357209905,1743895847242,-500.0,0.00030409,2]
[357209906,1743895847252,-500.0,0.00030409,2]
[357209907,1743895847261,-500.0,0.00030409,2]
[357209908,1743895847270,-500.0,0.00030409,2]
[357209909,1743895847279,-500.0,0.00030409,2]
[357209910,1743895847288,-500.0,0.00030409,2]
[357209911,1743895847298,-500.0,0.00030409,2]
[357209912,1743895847307,-500.0,0.00030409,2]
[357209913,1743895847316,-500.0,0.00030409,2]
[357209914,1743895847326,-500.0,0.00030409,2]
[357209915,1743895847335,-509.45483288,0.00030409,2]
[357209916,1743895847344,-500.0,0.00030409,2]
[357209917,1743895847353,-500.0,0.00030409,2]
[357209918,1743895847362,-500.0,0.00030409,2]
[357209919,1743895847372,-500.0,0.00030409,2]
[357209920,1743895847382,-500.0,0.00030409,2]
[357209921,1743895847391,-500.0,0.00030409,2]
[357209922,1743895847400,-500.0,0.00030409,2]
[357209923,1743895847409,-500.0,0.00030409,2]
[357209924,1743895847419,-500.0,0.00030409,2]
[357209925,1743895847428,-500.0,0.00030409,2]
[357209926,1743895847437,-500.0,0.00030409,2]
[357209927,1743895847447,-500.0,0.00030409,2]
[357209928,1743895847457,-509.25463678,0.00030409,2]
[357209929,1743895847470,-508.70406089,0.00030409,2]
[357209930,1743895847479,-500.0,0.00030409,2]
[357209931,1743895847489,-503.94508787,0.00030409,2]
[357209932,1743895847499,-500.0,0.00030409,2]
[357209933,1743895847508,-500.0,0.00030409,2]
[357209934,1743895847518,-500.0,0.00030409,2]
[357209935,1743895847527,-500.0,0.00030409,2]
[357209936,1743895847537,-500.0,0.00030409,2]
[357209937,1743895847546,-500.0,0.00030409,2]
[357209938,1743895847555,-500.0,0.00030409,2]
[357209939,1743895847566,-500.0,0.00030409,2]
[357209940,1743895847575,-500.0,0.00030409,2]
[357209941,1743895847584,-500.0,0.00030409,2]
[357209942,1743895847594,-500.0,0.00030409,2]
[357209943,1743895847603,-500.0,0.00030409,2]
[357209944,1743895847612,-500.0,0.00030409,2]
[357209945,1743895847625,-500.0,0.00030409,2]
[357209946,1743895847635,-500.0,0.00030409,2]
[357209947,1743895847644,-500.0,0.00030409,2]
[357209948,1743895847654,-500.0,0.00030409,2]
[357209949,1743895847663,-500.0,0.00030409,2]
[357209950,1743895847672,-500.0,0.00030409,2]
[357209951,1743895847681,-537.1708044,0.00030409,2]
[357209952,1743895847690,-500.0,0.00030409,2]
[357209953,1743895847699,-512.87103996,0.00030409,2]
[357209954,1743895847708,-500.0,0.00030409,2]
[357209955,1743895847718,-500.0,0.00030409,2]
[357209956,1743895847727,-500.0,0.00030409,2]
[357209957,1743895847736,-504.12241566,0.00030409,2]
[357209958,1743895847746,-500.0,0.00030409,2]
[357209959,1743895847755,-500.0,0.00030409,2]
[357209960,1743895847764,-500.0,0.00030409,2]
[357209961,1743895847773,-500.0,0.00030409,2]
[357209962,1743895847783,-500.0,0.00030409,2]
[357209963,1743895847792,-500.0,0.00030409,2]
[357209964,1743895847801,-500.0,0.00030409,2]
[357209965,1743895847811,-500.0,0.00030409,2]
[357209966,1743895847825,-500.0,0.00030409,2]
[357209967,1743895847834,-500.0,0.00030409,2]
[357209968,1743895847843,-500.0,0.00030409,2]
[357209969,1743895847852,-500.0,0.00030409,2]
[357209970,1743895847862,-500.0,0.00030409,2]
[357209971,1743895847871,-500.0,0.00030409,2]
[357209972,1743895847880,-515.07055151,0.00030409,2]
[357209973,1743895847889,-500.0,0.00030409,2]
[357209974,1743895847898,-403.15267586,0.00030409,2]
[357209975,1743895847908,-509.05680893,0.00030409,2]
[357209976,1743895847917,-510.09444149,0.00030409,2]
[357209977,1743895847927,-518.42796106,0.00030409,2]
[357209978,1743895847936,-521.95804604,0.00030409,2]
[357209979,1743895847945,-499.49451019,0.00030409,2]
[357209980,1743895847954,-500.0,0.00030409,2]
[357209981,1743895847964,-515.53606634,0.00030409,2]
[357209982,1743895847973,-500.0,0.00030409,2]
[357209983,1743895847982,-502.49249035,0.00030409,2]
[357209984,1743895847991,-500.0,0.00030409,2]
[357209985,1743895848001,-507.22433906,0.00030409,2]
[357209986,1743895848010,-500.0,0.00030409,2]
[357209987,1743895848020,-500.0,0.00030409,2]
[357209988,1743895848030,-507.91076272,0.00030409,2]
[357209989,1743895848039,-510.2290945,0.00030409,2]
[357209990,1743895848048,-512.2030889,0.00030409,2]
[357209991,1743895848057,-500.0,0.00030409,2]
[357209992,1743895848067,-549.70468842,0.00030409,2]
[357209993,1743895848076,-525.26715853,0.00030409,2]
[357209994,1743895848086,-532.03912869,0.00030409,2]
[357209995,1743895848095,-514.49293618,0.00030409,2]
[357209996,1743895848105,-512.04610925,0.00030409,2]
[357209997,1743895848114,-512.40227533,0.00030409,2]
[357209998,1743895848123,-484.3555446,0.00030409,2]
[357209999,1743895848133,-511.62607275,0.00030409,2]
[357210000,1743895848143,-522.38490658,0.00030409,2]
[357210001,1743895848152,-512.206252,0.00030409,2]
[357210002,1743895848162,-500.0,0.00030409,2]
[357210003,1743895848172,-500.0,0.00030409,2]
[357210004,1743895848181,-562.28658328,0.00030409,2]
[357210005,1743895848190,-500.0,0.00030409,2]
[357210006,1743895848200,-532.10570679,0.00030409,2]
[357210007,1743895848210,-586.99441234,0.00030409,2]
[357210008,1743895848219,-514.66580122,0.00030409,2]
[357210009,1743895848229,-500.0,0.00030409,2]
[357210010,1743895848237,-510.9330461,0.00030409,2]
[357210011,1743895848246,-556.28107211,0.00030409,2]
[357210012,1743895848256,-502.4555977,0.00030409,2]
[357210013,1743895848266,-492.68113409,0.00030409,2]
[357210014,1743895848276,-508.6985193,0.00030409,2]
[357210015,1743895848286,-565.78052781,0.00030409,2]
[357210016,1743895848295,-540.91715454,0.00030409,2]
[357210017,1743895848305,-574.55476108,0.00030409,2]
[357210018,1743895848314,-509.31104957,0.00030409,2]
[357210019,1743895848323,-508.72257962,0.00030409,2]
[357210020,1743895848333,-525.13269731,0.00030409,2]
[357210021,1743895848342,-508.55056872,0.00030409,2]
[357210022,1743895848351,-531.15859403,0.00030409,2]
[357210023,1743895848361,-548.97287445,0.00030409,2]
[357210024,1743895848370,-504.7902459,0.00030409,2]
[357210025,1743895848380,-500.0,0.00030409,2]
[357210026,1743895848389,-508.9481938,0.00030409,2]
[357210027,1743895848399,-510.5107565,0.00030409,2]
[357210028,1743895848408,-510.98153037,0.00030409,2]
[357210029,1743895848418,-517.22353815,0.00030409,2]
[357210030,1743895848427,-512.52719556,0.00030409,2]
[357210031,1743895848437,-500.0,0.00030409,2]
[357210032,1743895848446,-536.22617981,0.00030409,2]
[357210033,1743895848456,-515.97153711,0.00030409,2]
[357210034,1743895848468,-500.0,0.00030409,2]
[357210035,1743895848478,-500.0,0.00030409,2]
[357210036,1743895848488,-546.7373372,0.00030409,2]
[357210037,1743895848497,-500.0,0.00030409,2]
[357210038,1743895848508,-500.0,0.00030409,2]
[357210039,1743895848517,-522.05696041,0.00030409,2]
[357210040,1743895848526,-516.10378742,0.00030409,2]
[357210041,1743895848536,-528.36683242,0.00030409,2]
[357210042,1743895848546,-500.0,0.00030409,2]
[357210043,1743895848556,-526.82805976,0.00030409,2]
[357210044,1743895848565,-573.1069447,0.00030409,2]
[357210045,1743895848575,-511.93765404,0.00030409,2]
[357210046,1743895848584,-513.7547963,0.00030409,2]
[357210047,1743895848594,-547.64043078,0.00030409,2]
[357210048,1743895848603,-500.0,0.00030409,2]